fUSD/lending_fUSD_20260621
["ID","MTS","AMOUNT","RATE_DAILY","PERIOD"]
[425940180,1782039082000,-8358.41,0.00029041,2]
[425940187,1782039082000,-500.0,0.00029041,2]
[425940183,1782039082000,-500.0,0.00029041,2]
[425940184,1782039082000,-4415.71,0.00029041,2]
[425940189,1782039082000,-500.0,0.00029041,2]
[425940185,1782039082000,-6060.25,0.00029041,2]
[425940186,1782039082000,-679.09,0.00029041,2]
[425940182,1782039082000,-500.0,0.00029041,2]
[425940177,1782039082000,-767.75,0.00029041,2]
[425940181,1782039082000,-4615.01,0.00029041,2]
[425940190,1782039082000,-3759.49,0.00029041,2]
[425940192,1782039082000,-5449.18,0.00029041,2]
[425940193,1782039082000,-937.4,0.00029041,2]
[425940197,1782039082000,-500.0,0.00029041,2]
[425940195,1782039082000,-500.0,0.00029041,2]
[425940194,1782039082000,-14378.51,0.00029041,2]
[425940191,1782039082000,-4367.63,0.00029041,2]
[425940150,1782039082000,-500.0,0.00029041,2]
[425940198,1782039082000,-591.3,0.00029041,2]
[425940199,1782039082000,-704.1,0.00029041,2]
[425940188,1782039082000,-692.04,0.00029041,2]
[425940175,1782039082000,-500.0,0.00029041,2]
[425940196,1782039082000,-509.5,0.00029041,2]
[425940179,1782039082000,-500.0,0.00029041,2]
[425940176,1782039082000,-1061.83,0.00029041,2]
[425940149,1782039082000,-2859.22,0.00029041,2]
[425940153,1782039082000,-4573.85,0.00029041,2]
[425940156,1782039082000,-7096.82,0.00029041,2]
[425940158,1782039082000,-500.0,0.00029041,2]
[425940152,1782039082000,-500.0,0.00029041,2]
[425940157,1782039082000,-626.25,0.00029041,2]
[425940160,1782039082000,-500.0,0.00029041,2]
[425940159,1782039082000,-521.94,0.00029041,2]
[425940161,1782039082000,-969.34,0.00029041,2]
[425940162,1782039082000,-576.81,0.00029041,2]
[425940154,1782039082000,-5769.58,0.00029041,2]
[425940165,1782039082000,-1081.7,0.00029041,2]
[425940163,1782039082000,-533.66,0.00029041,2]
[425940172,1782039082000,-500.0,0.00029041,2]
[425940170,1782039082000,-505.98,0.00029041,2]
[425940168,1782039082000,-886.74,0.00029041,2]
[425940173,1782039082000,-3670.41,0.00029041,2]
[425940166,1782039082000,-4292.96,0.00029041,2]
[425940167,1782039082000,-3386.18,0.00029041,2]
[425940164,1782039082000,-500.0,0.00029041,2]
[425940169,1782039082000,-500.0,0.00029041,2]
[425940174,1782039082000,-500.0,0.00029041,2]
[425940225,1782039083000,-3902.92,0.00029041,2]
[425940236,1782039083000,-1599.37,0.00029041,2]
[425940226,1782039083000,-500.0,0.00029041,2]
[425940224,1782039083000,-500.0,0.00029041,2]
[425940229,1782039083000,-3987.67,0.00029041,2]
[425940228,1782039083000,-875.1,0.00029041,2]
[425940227,1782039083000,-683.91,0.00029041,2]
[425940233,1782039083000,-500.0,0.00029041,2]
[425940230,1782039083000,-993.47,0.00029041,2]
[425940231,1782039083000,-500.0,0.00029041,2]
[425940232,1782039083000,-985.05,0.00029041,2]
[425940235,1782039083000,-5761.44,0.00029041,2]
[425940237,1782039083000,-500.0,0.00029041,2]
[425940240,1782039083000,-5106.38,0.00029041,2]
[425940246,1782039083000,-523.99,0.00029041,2]
[425940239,1782039083000,-6506.45,0.00029041,2]
[425940243,1782039083000,-3703.49,0.00029041,2]
[425940219,1782039083000,-1000.0,0.00029041,2]
[425940234,1782039083000,-500.0,0.00029041,2]
[425940221,1782039083000,-718.6,0.00029041,2]
[425940213,1782039083000,-500.0,0.00029041,2]
[425940220,1782039083000,-500.0,0.00029041,2]
[425940241,1782039083000,-500.0,0.00029041,2]
[425940201,1782039083000,-500.0,0.00029041,2]
[425940202,1782039083000,-5462.6,0.00029041,2]
[425940206,1782039083000,-794.89,0.00029041,2]
[425940204,1782039083000,-500.0,0.00029041,2]
[425940205,1782039083000,-500.0,0.00029041,2]
[425940203,1782039083000,-500.0,0.00029041,2]
[425940207,1782039083000,-500.0,0.00029041,2]
[425940212,1782039083000,-500.0,0.00029041,2]
[425940209,1782039083000,-562.14,0.00029041,2]
[425940210,1782039083000,-4058.51,0.00029041,2]
[425940211,1782039083000,-500.0,0.00029041,2]
[425940208,1782039083000,-5945.0,0.00029041,2]
[425940214,1782039083000,-3297.26,0.00029041,2]
[425940215,1782039083000,-500.0,0.00029041,2]
[425940217,1782039083000,-4800.04,0.00029041,2]
[425940216,1782039083000,-2428.94,0.00029041,2]
[425940223,1782039083000,-1912.81,0.00029041,2]
[425940218,1782039083000,-500.0,0.00029041,2]
[425940222,1782039083000,-497.50000056,0.00029041,2]
[425940242,1782039083000,-3138.47,0.00029041,2]
[425940200,1782039083000,-980.9,0.00029041,2]
[425940244,1782039083000,-4078.59,0.00029041,2]
[425940272,1782039083000,-57441.87950292,0.00029305,2]
[425940271,1782039083000,-1080.26,0.000293,7]
[425940275,1782039083000,-904.35,0.00029315,2]
[425940279,1782039083000,-500.0,0.00029315,2]
[425940273,1782039083000,-500.0,0.00029315,2]
[425940277,1782039083000,-502.15,0.00029315,2]
[425940270,1782039083000,-49535.85663792,0.000293,2]
[425940274,1782039083000,-278.65271173,0.00029315,2]
[425940276,1782039083000,-500.0,0.00029315,2]
[425940278,1782039083000,-500.0,0.00029315,2]
[425940280,1782039083000,-500.0,0.00029315,2]
[425940287,1782039083000,-438.25281227,0.00029315,2]
[425940286,1782039083000,-717.15,0.00029315,2]
[425940284,1782039083000,-500.0,0.00029315,2]
[425940283,1782039083000,-408.64282722,0.00029315,2]
[425940282,1782039083000,-500.0,0.00029315,2]
[425940288,1782039083000,-500.0,0.00029315,2]
[425940285,1782039083000,-855.77,0.00029315,2]
[425940245,1782039083000,-500.0,0.00029041,2]
[425940269,1782039083000,-849.67,0.000293,7]
[425940268,1782039083000,-1923.1967307,0.00029284,2]
[425940281,1782039083000,-500.0,0.00029315,2]
[425940266,1782039083000,-2007.8195,0.0002926,2]
[425940267,1782039083000,-10010.2414,0.0002926,2]
[425940238,1782039083000,-500.0,0.00029041,2]
[425940247,1782039083000,-500.0,0.00029041,2]
[425940249,1782039083000,-599.60298507,0.00029109,2]
[425940250,1782039083000,-212.74633009,0.0002911,2]
[425940253,1782039083000,-64738.5517257,0.00029154,2]
[425940257,1782039083000,-187.47,0.00029204,7]
[425940255,1782039083000,-500.0,0.00029156,60]
[425940254,1782039083000,-151.0,0.00029154,7]
[425940251,1782039083000,-459.0,0.00029147,10]
[425940248,1782039083000,-1025.33,0.000291,30]
[425940256,1782039083000,-1025.33,0.00029175,30]
[425940260,1782039083000,-171.73,0.00029209,7]
[425940262,1782039083000,-168.25,0.0002921,7]
[425940261,1782039083000,-384.76,0.0002921,7]
[425940258,1782039083000,-187.38,0.00029205,7]
[425940259,1782039083000,-384.71,0.00029209,7]
[425940264,1782039083000,-21930.3462716,0.0002922,2]
[425940263,1782039083000,-384.81,0.00029211,7]
[425940252,1782039083000,-5285.1099064,0.00029154,2]
[425940265,1782039083000,-1025.33,0.0002925,30]
[425940320,1782039084000,-500.0,0.00029315,2]
[425940327,1782039084000,-679.35,0.00029315,2]
[425940325,1782039084000,-500.0,0.00029315,2]
[425940321,1782039084000,-508.05796897,0.00029315,2]
[425940323,1782039084000,-675.01,0.00029315,2]
[425940318,1782039084000,-557.98,0.00029315,2]
[425940322,1782039084000,-500.0,0.00029315,2]
[425940324,1782039084000,-500.0,0.00029315,2]
[425940317,1782039084000,-500.0,0.00029315,2]
[425940326,1782039084000,-500.0,0.00029315,2]
[425940319,1782039084000,-533.69,0.00029315,2]
[425940329,1782039084000,-500.0,0.00029315,2]
[425940338,1782039084000,-500.0,0.00029315,2]
[425940330,1782039084000,-500.0,0.00029315,2]
[425940328,1782039084000,-423.43,0.00029315,2]
[425940331,1782039084000,-828.66,0.00029315,2]
[425940335,1782039084000,-500.0,0.00029315,2]
[425940334,1782039084000,-921.54,0.00029315,2]
[425940333,1782039084000,-500.0,0.00029315,2]
[425940332,1782039084000,-500.0,0.00029315,2]
[425940339,1782039084000,-500.0,0.00029315,2]
[425940337,1782039084000,-500.0,0.00029315,2]
[425940344,1782039084000,-615.39,0.00029315,2]
[425940316,1782039084000,-500.0,0.00029315,2]
[425940336,1782039084000,-500.0,0.00029315,2]
[425940315,1782039084000,-500.0,0.00029315,2]
[425940294,1782039084000,-500.0,0.00029315,2]
[425940313,1782039084000,-500.0,0.00029315,2]
[425940289,1782039084000,-500.0,0.00029315,2]
[425940290,1782039084000,-500.0,0.00029315,2]
[425940293,1782039084000,-500.0,0.00029315,2]
[425940291,1782039084000,-500.0,0.00029315,2]
[425940342,1782039084000,-500.0,0.00029315,2]
[425940295,1782039084000,-500.0,0.00029315,2]
[425940298,1782039084000,-500.0,0.00029315,2]
[425940292,1782039084000,-500.0,0.00029315,2]
[425940297,1782039084000,-500.0,0.00029315,2]
[425940299,1782039084000,-500.0,0.00029315,2]
[425940296,1782039084000,-500.0,0.00029315,2]
[425940312,1782039084000,-50638.63297788,0.00029315,2]
[425940302,1782039084000,-500.0,0.00029315,2]
[425940301,1782039084000,-797.35,0.00029315,2]
[425940314,1782039084000,-602.69,0.00029315,2]
[425940304,1782039084000,-500.0,0.00029315,2]
[425940303,1782039084000,-576.15,0.00029315,2]
[425940305,1782039084000,-500.0,0.00029315,2]
[425940311,1782039084000,-500.0,0.00029315,2]
[425940306,1782039084000,-1019.73,0.00029315,2]
[425940307,1782039084000,-694.81,0.00029315,2]
[425940309,1782039084000,-500.0,0.00029315,2]
[425940310,1782039084000,-632.44,0.00029315,2]
[425940308,1782039084000,-500.0,0.00029315,2]
[425940300,1782039084000,-697.33,0.00029315,2]
[425940341,1782039084000,-500.0,0.00029315,2]
[425940340,1782039084000,-500.0,0.00029315,2]
[425940347,1782039084000,-500.0,0.00029315,2]
[425940382,1782039084000,-500.0,0.00029315,2]
[425940376,1782039084000,-500.0,0.00029315,2]
[425940375,1782039084000,-724.45,0.00029315,2]
[425940377,1782039084000,-500.0,0.00029315,2]
[425940381,1782039084000,-1185.3,0.00029315,2]
[425940374,1782039084000,-685.72,0.00029315,2]
[425940379,1782039084000,-500.0,0.00029315,2]
[425940378,1782039084000,-586.57621916,0.00029315,2]
[425940380,1782039084000,-327.31,0.00029315,2]
[425940387,1782039084000,-500.0,0.00029315,2]
[425940385,1782039084000,-500.0,0.00029315,2]
[425940394,1782039084000,-500.0,0.00029315,2]
[425940386,1782039084000,-500.0,0.00029315,2]
[425940390,1782039084000,-500.0,0.00029315,2]
[425940389,1782039084000,-500.0,0.00029315,2]
[425940384,1782039084000,-500.0,0.00029315,2]
[425940393,1782039084000,-500.0,0.00029315,2]
[425940391,1782039084000,-500.0,0.00029315,2]
[425940392,1782039084000,-500.0,0.00029315,2]
[425940388,1782039084000,-500.0,0.00029315,2]
[425940345,1782039084000,-500.0,0.00029315,2]
[425940395,1782039084000,-500.0,0.00029315,2]
[425940397,1782039084000,-541.13,0.00029315,2]
[425940399,1782039084000,-500.0,0.00029315,2]
[425940398,1782039084000,-500.0,0.00029315,2]
[425940383,1782039084000,-691.01,0.00029315,2]
[425940373,1782039084000,-500.0,0.00029315,2]
[425940396,1782039084000,-500.0,0.00029315,2]
[425940369,1782039084000,-880.36,0.00029315,2]
[425940372,1782039084000,-1068.75,0.00029315,2]
[425940346,1782039084000,-500.0,0.00029315,2]
[425940349,1782039084000,-538.61,0.00029315,2]
[425940359,1782039084000,-500.0,0.00029315,2]
[425940348,1782039084000,-535.01,0.00029315,2]
[425940351,1782039084000,-500.0,0.00029315,2]
[425940352,1782039084000,-246.61626926,0.00029315,2]
[425940353,1782039084000,-500.0,0.00029315,2]
[425940356,1782039084000,-500.0,0.00029315,2]
[425940350,1782039084000,-500.0,0.00029315,2]
[425940355,1782039084000,-500.0,0.00029315,2]
[425940354,1782039084000,-500.0,0.00029315,2]
[425940343,1782039084000,-500.0,0.00029315,2]
[425940357,1782039084000,-42385.551759,0.00029315,2]
[425940358,1782039084000,-500.0,0.00029315,2]
[425940367,1782039084000,-500.0,0.00029315,2]
[425940368,1782039084000,-549.03855289,0.00029315,2]
[425940364,1782039084000,-500.0,0.00029315,2]
[425940362,1782039084000,-546.21,0.00029315,2]
[425940366,1782039084000,-500.0,0.00029315,2]
[425940365,1782039084000,-500.0,0.00029315,2]
[425940363,1782039084000,-698.97,0.00029315,2]
[425940370,1782039084000,-500.0,0.00029315,2]
[425940361,1782039084000,-561.83803749,0.00029315,2]
[425940371,1782039084000,-1542.04,0.00029315,2]
[425940360,1782039084000,-500.0,0.00029315,2]
[425940427,1782039085000,-500.0,0.00029315,2]
[425940431,1782039085000,-500.0,0.00029315,2]
[425940437,1782039085000,-500.0,0.00029315,2]
[425940426,1782039085000,-500.0,0.00029315,2]
[425940429,1782039085000,-569.11,0.00029315,2]
[425940428,1782039085000,-541.49715247,0.00029315,2]
[425940435,1782039085000,-500.0,0.00029315,2]
[425940432,1782039085000,-500.0,0.00029315,2]
[425940436,1782039085000,-526.59,0.00029315,2]
[425940430,1782039085000,-5806.87,0.00029315,2]
[425940447,1782039085000,-500.0,0.00029315,2]
[425940433,1782039085000,-1058.86,0.00029315,2]
[425940444,1782039085000,-9429.08,0.00029315,2]
[425940438,1782039085000,-500.0,0.00029315,2]
[425940445,1782039085000,-1736.45,0.00029315,2]
[425940442,1782039085000,-924.45,0.00029315,2]
[425940449,1782039085000,-500.0,0.00029315,2]
[425940440,1782039085000,-582.15,0.00029315,2]
[425940448,1782039085000,-3297.87,0.00029315,2]
[425940439,1782039085000,-547.97,0.00029315,2]
[425940423,1782039085000,-503.41,0.00029315,2]
[425940434,1782039085000,-500.0,0.00029315,2]
[425940420,1782039085000,-500.0,0.00029315,2]
[425940409,1782039085000,-151.0,0.00029315,7]
[425940422,1782039085000,-322.39265818,0.00029315,2]
[425940443,1782039085000,-274.45908441,0.00029315,2]
[425940400,1782039085000,-927.04,0.00029315,2]
[425940402,1782039085000,-864.07,0.00029315,2]
[425940403,1782039085000,-500.0,0.00029315,2]
[425940401,1782039085000,-500.0,0.00029315,2]
[425940405,1782039085000,-500.0,0.00029315,2]
[425940404,1782039085000,-938.97,0.00029315,2]
[425940406,1782039085000,-709.33,0.00029315,2]
[425940408,1782039085000,-932.3,0.00029315,2]
[425940407,1782039085000,-500.0,0.00029315,2]
[425940411,1782039085000,-151.0,0.00029315,7]
[425940410,1782039085000,-2361.31,0.00029315,2]
[425940414,1782039085000,-500.0,0.00029315,2]
[425940412,1782039085000,-500.0,0.00029315,2]
[425940413,1782039085000,-500.0,0.00029315,2]
[425940415,1782039085000,-500.0,0.00029315,2]
[425940417,1782039085000,-616.78032856,0.00029315,2]
[425940418,1782039085000,-500.0,0.00029315,2]
[425940424,1782039085000,-500.0,0.00029315,2]
[425940419,1782039085000,-500.0,0.00029315,2]
[425940416,1782039085000,-500.0,0.00029315,2]
[425940425,1782039085000,-3065.88,0.00029315,2]
[425940446,1782039085000,-500.0,0.00029315,2]
[425940421,1782039085000,-3084.29,0.00029315,2]
[425940461,1782039085000,-500.0,0.00029315,2]
[425940497,1782039085000,-500.0,0.00029315,2]
[425940486,1782039085000,-500.0,0.00029315,2]
[425940475,1782039085000,-939.54,0.00029315,2]
[425940483,1782039085000,-500.0,0.00029315,2]
[425940484,1782039085000,-500.0,0.00029315,2]
[425940481,1782039085000,-662.46,0.00029315,2]
[425940482,1782039085000,-500.0,0.00029315,2]
[425940485,1782039085000,-500.0,0.00029315,2]
[425940478,1782039085000,-5529.24,0.00029315,2]
[425940480,1782039085000,-544.37,0.00029315,2]
[425940479,1782039085000,-633.06,0.00029315,2]
[425940489,1782039085000,-500.0,0.00029315,2]
[425940487,1782039085000,-500.0,0.00029315,2]
[425940490,1782039085000,-355.37999048,0.00029315,2]
[425940488,1782039085000,-500.0,0.00029315,2]
[425940492,1782039085000,-3353.34,0.00029315,2]
[425940491,1782039085000,-500.0,0.00029315,2]
[425940493,1782039085000,-791.83,0.00029315,2]
[425940494,1782039085000,-615.45,0.00029315,2]
[425940495,1782039085000,-607.6,0.00029315,2]
[425940496,1782039085000,-500.0,0.00029315,2]
[425940476,1782039085000,-369.05397378,0.00029315,2]
[425940473,1782039085000,-618.11,0.00029315,2]
[425940477,1782039085000,-848.21,0.00029315,2]
[425940463,1782039085000,-1294.7,0.00029315,2]
[425940469,1782039085000,-500.0,0.00029315,2]
[425940451,1782039085000,-1099.68,0.00029315,2]
[425940450,1782039085000,-500.0,0.00029315,2]
[425940453,1782039085000,-500.0,0.00029315,2]
[425940452,1782039085000,-500.0,0.00029315,2]
[425940454,1782039085000,-500.0,0.00029315,2]
[425940455,1782039085000,-500.0,0.00029315,2]
[425940458,1782039085000,-500.0,0.00029315,2]
[425940457,1782039085000,-353.56877456,0.00029315,2]
[425940459,1782039085000,-291.36611426,0.00029315,2]
[425940456,1782039085000,-1465.81,0.00029315,2]
[425940441,1782039085000,-3521.69,0.00029315,2]
[425940466,1782039085000,-500.0,0.00029315,2]
[425940462,1782039085000,-500.0,0.00029315,2]
[425940467,1782039085000,-500.0,0.00029315,2]
[425940464,1782039085000,-500.0,0.00029315,2]
[425940465,1782039085000,-500.0,0.00029315,2]
[425940471,1782039085000,-8116.71,0.00029315,2]
[425940468,1782039085000,-655.4,0.00029315,2]
[425940470,1782039085000,-500.0,0.00029315,2]
[425940474,1782039085000,-916.98,0.00029315,2]
[425940472,1782039085000,-500.0,0.00029315,2]
[425940460,1782039085000,-500.0,0.00029315,2]
[425940538,1782039086000,-3694.74,0.00029315,2]
[425940529,1782039086000,-500.0,0.00029315,2]
[425940527,1782039086000,-500.0,0.00029315,2]
[425940531,1782039086000,-160.94100821,0.00029315,2]
[425940525,1782039086000,-939.31,0.00029315,2]
[425940532,1782039086000,-500.0,0.00029315,2]
[425940528,1782039086000,-4322.38,0.00029315,2]
[425940530,1782039086000,-2411.52,0.00029315,2]
[425940534,1782039086000,-500.0,0.00029315,2]
[425940524,1782039086000,-1375.95,0.00029315,2]
[425940526,1782039086000,-500.0,0.00029315,2]
[425940541,1782039086000,-500.0,0.00029315,2]
[425940545,1782039086000,-500.0,0.00029315,2]
[425940544,1782039086000,-1286.43,0.00029315,2]
[425940542,1782039086000,-500.0,0.00029315,2]
[425940535,1782039086000,-500.0,0.00029315,2]
[425940537,1782039086000,-586.9,0.00029315,2]
[425940536,1782039086000,-616.21,0.00029315,2]
[425940540,1782039086000,-500.0,0.00029315,2]
[425940543,1782039086000,-500.0,0.00029315,2]
[425940546,1782039086000,-4074.66,0.00029315,2]
[425940547,1782039086000,-9524.29,0.00029315,2]
[425940556,1782039086000,-500.0,0.00029315,2]
[425940539,1782039086000,-3925.94,0.00029315,2]
[425940557,1782039086000,-3443.8,0.00029315,2]
[425940498,1782039086000,-733.86,0.00029315,2]
[425940523,1782039086000,-5839.56,0.00029315,2]
[425940501,1782039086000,-553.17,0.00029315,2]
[425940500,1782039086000,-500.0,0.00029315,2]
[425940551,1782039086000,-6185.48,0.00029315,2]
[425940499,1782039086000,-500.0,0.00029315,2]
[425940502,1782039086000,-2112.512751,0.00029315,7]
[425940503,1782039086000,-561.53,0.00029315,2]
[425940504,1782039086000,-2112.512751,0.00029315,7]
[425940505,1782039086000,-500.0,0.00029315,2]
[425940509,1782039086000,-3551.18,0.00029315,2]
[425940511,1782039086000,-500.0,0.00029315,2]
[425940507,1782039086000,-500.0,0.00029315,2]
[425940522,1782039086000,-500.0,0.00029315,2]
[425940508,1782039086000,-2112.512746,0.00029315,7]
[425940506,1782039086000,-2112.512751,0.00029315,7]
[425940513,1782039086000,-4478.36,0.00029315,2]
[425940512,1782039086000,-504.73971594,0.00029315,2]
[425940514,1782039086000,-727.46,0.00029315,2]
[425940518,1782039086000,-500.0,0.00029315,2]
[425940521,1782039086000,-594.78753075,0.00029315,2]
[425940515,1782039086000,-500.0,0.00029315,2]
[425940519,1782039086000,-8584.48,0.00029315,2]
[425940517,1782039086000,-3329.79,0.00029315,2]
[425940516,1782039086000,-500.0,0.00029315,2]
[425940520,1782039086000,-500.0,0.00029315,2]
[425940510,1782039086000,-500.0,0.00029315,2]
[425940554,1782039086000,-761.06,0.00029315,2]
[425940533,1782039086000,-9261.94,0.00029315,2]
[425940548,1782039086000,-1193.26,0.00029315,2]
[425940585,1782039086000,-500.0,0.00029315,2]
[425940586,1782039086000,-500.0,0.00029315,2]
[425940593,1782039086000,-500.0,0.00029315,2]
[425940584,1782039086000,-500.0,0.00029315,2]
[425940589,1782039086000,-500.0,0.00029315,2]
[425940592,1782039086000,-5769.58,0.00029315,2]
[425940588,1782039086000,-500.0,0.00029315,2]
[425940583,1782039086000,-7992.35,0.00029315,2]
[425940587,1782039086000,-2859.22,0.00029315,2]
[425940591,1782039086000,-4573.85,0.00029315,2]
[425940590,1782039086000,-500.0,0.00029315,2]
[425940577,1782039086000,-500.0,0.00029315,2]
[425940595,1782039086000,-626.25,0.00029315,2]
[425940596,1782039086000,-500.0,0.00029315,2]
[425940599,1782039086000,-969.34,0.00029315,2]
[425940605,1782039086000,-83.5057853,0.00029315,2]
[425940602,1782039086000,-533.66,0.00029315,2]
[425940601,1782039086000,-500.0,0.00029315,2]
[425940600,1782039086000,-576.81,0.00029315,2]
[425940598,1782039086000,-500.0,0.00029315,2]
[425940594,1782039086000,-7096.82,0.00029315,2]
[425940604,1782039086000,-4292.96,0.00029315,2]
[425940603,1782039086000,-1081.7,0.00029315,2]
[425940555,1782039086000,-696.98,0.00029315,2]
[425940597,1782039086000,-521.94,0.00029315,2]
[425940578,1782039086000,-12476.71,0.00029315,2]
[425940582,1782039086000,-500.0,0.00029315,2]
[425940580,1782039086000,-4329.45,0.00029315,2]
[425940550,1782039086000,-500.0,0.00029315,2]
[425940553,1782039086000,-4111.73,0.00029315,2]
[425940549,1782039086000,-500.0,0.00029315,2]
[425940576,1782039086000,-930.27,0.00029315,2]
[425940562,1782039086000,-3059.52,0.00029315,2]
[425940568,1782039086000,-7989.76,0.00029315,2]
[425940558,1782039086000,-500.0,0.00029315,2]
[425940560,1782039086000,-500.0,0.00029315,2]
[425940559,1782039086000,-845.88,0.00029315,2]
[425940569,1782039086000,-4032.62,0.00029315,2]
[425940566,1782039086000,-500.0,0.00029315,2]
[425940563,1782039086000,-500.0,0.00029315,2]
[425940552,1782039086000,-500.0,0.00029315,2]
[425940561,1782039086000,-500.0,0.00029315,2]
[425940565,1782039086000,-673.72,0.00029315,2]
[425940575,1782039086000,-500.0,0.00029315,2]
[425940572,1782039086000,-500.0,0.00029315,2]
[425940574,1782039086000,-500.0,0.00029315,2]
[425940581,1782039086000,-500.0,0.00029315,2]
[425940579,1782039086000,-8635.26,0.00029315,2]
[425940573,1782039086000,-500.0,0.00029315,2]
[425940571,1782039086000,-5588.49,0.00029315,2]
[425940567,1782039086000,-500.0,0.00029315,2]
[425940564,1782039086000,-500.0,0.00029315,2]
[425940570,1782039086000,-2839.5,0.00029315,2]
[425940610,1782039087000,-248.45999999,0.00027671,2]
[425940607,1782039087000,-100.0,0.00027397,2]
[425940606,1782039087000,-500.0,0.00027397,2]
[425940608,1782039087000,-395.25999999,0.00027397,2]
[425940613,1782039087000,-527.50353436,0.00027671,2]
[425940612,1782039087000,-152.72499994,0.00027671,2]
[425940609,1782039087000,-480.37000001,0.00027397,2]
[425940611,1782039087000,-251.54000001,0.00027671,2]
[425940619,1782039087000,-264.65805453,0.00028493,2]
[425940616,1782039087000,-975.63,0.00027945,2]
[425940618,1782039087000,-202.78,0.0002848,2]
[425940617,1782039087000,-500.0,0.00028219,2]
[425940615,1782039087000,-500.0,0.00027945,2]
[425940620,1782039087000,-235.34194547,0.00028493,2]
[425940622,1782039087000,-18.78361244,0.00029041,2]
[425940621,1782039087000,-500.0,0.00028767,2]
[425940614,1782039087000,-295.4014657,0.00027671,2]
[425940623,1782039088000,-845.66169569,0.00024282,2]
[425940627,1782039088000,-83.1482814,0.00027397,2]
[425940628,1782039088000,-253.365,0.00027397,2]
[425940625,1782039088000,-4193.88830431,0.00024282,2]
[425940626,1782039088000,-6081.0,0.00027282,2]
[425940629,1782039088000,-163.4867186,0.00027397,2]
[425940624,1782039088000,-1041.45,0.00024282,2]
[425940630,1782039088000,-480.1323806,0.00027397,2]
[425940634,1782039106000,-325.06190306,0.00016149,2]
[425940633,1782039106000,-300.0,0.00016148,2]
[425940635,1782039106000,-224.66459933,0.00016149,2]
[425940636,1782039122000,-892.67884387,0.00014869,2]
[425940648,1782039260000,205.38365089,0.00013183,2]
[425940647,1782039260000,-150.0,0.00013982,2]
[425940650,1782039281000,500.0,8e-05,2]
[425940649,1782039281000,31.13634911,8e-05,2]
[425940651,1782039281000,500.0,8e-05,2]
[425940653,1782039281000,500.0,8e-05,2]
[425940655,1782039281000,6493.8449521,8e-05,2]
[425940654,1782039281000,500.0,8e-05,2]
[425940652,1782039281000,500.0,8e-05,2]
[425940657,1782039314000,-1971.0808949,0.00011,2]
[425940658,1782039328000,-849.72650239,0.00011,2]
[425940659,1782039343000,-849.72650239,0.00011,2]
[425940660,1782039358000,-153.0,0.00011,2]
[425940661,1782039372000,-153.0,0.00011,2]
[425940662,1782039388000,-602.82125646,0.00011,2]
[425940663,1782039403000,-602.82125646,0.00011,2]
[425940664,1782039420000,-892.67884387,0.00011,2]
[425940665,1782039435000,-415.17473817,0.00010999,2]